fUST/lending_fUST_20241015
["ID","MTS","AMOUNT","RATE_DAILY","PERIOD"]
[340264432,1728948588647,-500.0,0.00043754,60]
[340264433,1728948588674,-500.0,0.00043754,60]
[340264434,1728948588697,-500.0,0.00043754,60]
[340264435,1728948588722,-434.29657868,0.00043754,60]
[340264436,1728948588746,-500.0,0.00043754,60]
[340264437,1728948588770,-500.0,0.00043754,60]
[340264438,1728948588796,-500.0,0.00043754,60]
[340264439,1728948588819,-500.0,0.00043754,60]
[340264440,1728948588844,-500.0,0.00043754,60]
[340264441,1728948588866,-845.02,0.00043754,60]
[340264442,1728948588892,-500.0,0.00043754,60]
[340264443,1728948588918,-543.31983847,0.00043754,60]
[340264444,1728948588941,-500.0,0.00043754,60]
[340264445,1728948588963,-500.0,0.00043754,60]
[340264446,1728948588987,-500.0,0.00043754,60]
[340264447,1728948589009,-500.0,0.00043754,60]
[340264448,1728948589031,-500.0,0.00043754,60]
[340264449,1728948589053,-500.0,0.00043754,60]
[340264450,1728948589076,-1101.34727893,0.00043754,60]
[340264451,1728948589100,-500.0,0.00043754,60]
[340264452,1728948589123,-500.0,0.00043754,60]
[340264453,1728948589145,-500.0,0.00043754,60]
[340264454,1728948589167,-525.89,0.00043754,60]
[340264455,1728948589189,-406.39027659,0.00043754,60]
[340264456,1728948589214,-500.0,0.00043754,60]
[340264457,1728948589236,-506.7,0.00043754,60]
[340264458,1728948589259,-500.0,0.00043754,60]
[340264459,1728948589281,-500.0,0.00043754,60]
[340264460,1728948589304,-500.0,0.00043754,60]
[340264461,1728948589328,-500.0,0.00043754,60]
[340264462,1728948589353,-500.0,0.00043754,60]
[340264463,1728948589376,-500.0,0.00043755,7]
[340264464,1728948589403,-500.0,0.00043755,60]
[340264465,1728948589426,-500.0,0.00043755,60]
[340264466,1728948589451,-547.15372964,0.00043755,60]
[340264467,1728948589474,-500.0,0.00043755,60]
[340264468,1728948589498,-500.0,0.00043755,60]
[340264469,1728948589520,-500.0,0.00043755,60]
[340264470,1728948589544,-519.84798008,0.00043755,60]
[340264471,1728948589568,-500.0,0.00043755,60]
[340264472,1728948589591,-500.0,0.00043755,60]
[340264473,1728948589614,-500.0,0.00043755,60]
[340264474,1728948589637,-500.0,0.00043755,60]
[340264475,1728948589662,-500.0,0.00043755,60]
[340264476,1728948589785,-500.0,0.00043755,60]
[340264477,1728948589807,-500.0,0.00043755,60]
[340264478,1728948589829,-500.0,0.00043755,60]
[340264479,1728948589851,-152.20776078,0.00043755,60]
[340264480,1728948589874,-547.19210691,0.00043755,60]
[340264481,1728948589897,-500.0,0.00043755,60]
[340264482,1728948589919,-500.0,0.00043755,60]
[340264483,1728948589942,-500.0,0.00043755,60]
[340264484,1728948589965,-547.763197,0.00043755,60]
[340264485,1728948589987,-500.0,0.00043755,60]
[340264486,1728948590010,-500.0,0.00043755,60]
[340264487,1728948590034,-500.0,0.00043755,60]
[340264488,1728948590056,-500.0,0.00043755,60]
[340264489,1728948590079,-500.0,0.00043755,60]
[340264490,1728948590101,-319.22083411,0.00043755,60]
[340264491,1728948590124,-500.0,0.00043755,60]
[340264492,1728948590145,-500.0,0.00043755,60]
[340264493,1728948590167,-500.0,0.00043755,60]
[340264494,1728948590189,-518.54279673,0.00043755,60]
[340264495,1728948590211,-500.0,0.00043755,60]
[340264496,1728948590233,-359.77,0.00043755,60]
[340264497,1728948590256,-535.99725762,0.00043755,60]
[340264498,1728948590278,-500.0,0.00043755,60]
[340264499,1728948590300,-500.0,0.00043755,60]
[340264500,1728948590323,-500.0,0.00043755,60]
[340264501,1728948590344,-500.0,0.00043755,60]
[340264502,1728948590366,-500.0,0.00043755,60]
[340264503,1728948590389,-546.63912919,0.00043755,60]
[340264504,1728948590411,-520.2916056,0.00043755,60]
[340264505,1728948590433,-523.23838132,0.00043755,60]
[340264506,1728948590455,-500.0,0.00043755,60]
[340264507,1728948590477,-249.69004541,0.00043755,60]
[340264508,1728948590498,-436.46716149,0.00043755,60]
[340264509,1728948590520,-500.0,0.00043755,60]
[340264510,1728948590542,-500.0,0.00043755,60]
[340264511,1728948590564,-500.0,0.00043755,2]
[340264512,1728948590587,-500.0,0.00043755,60]
[340264513,1728948590610,-582.34606529,0.00043755,60]
[340264514,1728948590632,-500.0,0.00043755,60]
[340264515,1728948590655,-500.0,0.00043755,60]
[340264516,1728948590680,-500.0,0.00043755,60]
[340264517,1728948590703,-618.78735398,0.00043755,60]
[340264518,1728948590726,-500.0,0.00043755,60]
[340264519,1728948590751,-500.0,0.00043755,60]
[340264520,1728948590773,-500.0,0.00043755,60]
[340264521,1728948590795,-337.06167496,0.00043755,60]
[340264522,1728948590817,-500.0,0.00043755,60]
[340264523,1728948590840,-500.0,0.00043755,60]
[340264524,1728948590863,-500.0,0.00043755,60]
[340264525,1728948590885,-518.2285763,0.00043755,60]
[340264526,1728948590908,-500.0,0.00043755,60]
[340264527,1728948590930,-500.0,0.00043755,60]
[340264528,1728948590952,-500.0,0.00043755,60]
[340264529,1728948590975,-500.0,0.00043755,60]
[340264530,1728948590998,-500.0,0.00043755,60]
[340264531,1728948591021,-500.0,0.00043755,60]
[340264532,1728948591044,-500.0,0.00043755,60]
[340264533,1728948591066,-576.74234869,0.00043755,60]
[340264534,1728948591089,-1500.0,0.00043755,120]
[340264535,1728948591111,-500.0,0.00043755,60]
[340264536,1728948591133,-500.0,0.00043755,60]
[340264537,1728948591157,-500.0,0.00043755,60]
[340264538,1728948591179,-500.0,0.00043755,60]
[340264539,1728948591202,-500.0,0.00043755,60]
[340264540,1728948591224,-500.0,0.00043755,60]
[340264541,1728948591246,-525.67933545,0.00043755,60]
[340264542,1728948591268,-500.0,0.00043755,60]
[340264543,1728948591291,-500.0,0.00043755,60]
[340264544,1728948591313,-500.0,0.00043755,60]
[340264545,1728948591336,-584.30655158,0.00043755,60]
[340264546,1728948591359,-532.15924144,0.00043755,60]
[340264547,1728948591382,-546.22739256,0.00043755,60]
[340264548,1728948591404,-500.0,0.00043755,60]
[340264549,1728948591427,-500.0,0.00043755,60]
[340264550,1728948591449,-683.6,0.00043755,60]
[340264551,1728948591473,-500.0,0.00043755,60]
[340264552,1728948591496,-500.0,0.00043755,60]
[340264553,1728948591519,-274.3825458,0.00043755,60]
[340264554,1728948591541,-500.0,0.00043755,60]
[340264555,1728948591564,-500.0,0.00043755,7]
[340264556,1728948591587,-533.36069763,0.00043755,60]
[340264557,1728948591610,-500.0,0.00043755,60]
[340264558,1728948591633,-629.70417067,0.00043755,60]
[340264559,1728948591655,-500.0,0.00043755,60]
[340264560,1728948591682,-500.0,0.00043755,60]
[340264561,1728948591707,-500.0,0.00043755,60]
[340264562,1728948591730,-500.0,0.00043755,60]
[340264563,1728948591752,-500.0,0.00043755,60]
[340264564,1728948591774,-475.12831798,0.00043755,60]
[340264565,1728948591797,-447.45786984,0.00043755,60]
[340264566,1728948591819,-500.0,0.00043755,60]
[340264567,1728948591842,-500.0,0.00043755,60]
[340264568,1728948591865,-500.0,0.00043755,60]
[340264569,1728948591887,-500.0,0.00043755,60]
[340264570,1728948591911,-500.0,0.00043755,60]
[340264571,1728948591934,-500.0,0.00043755,60]
[340264572,1728948591956,-533.66493862,0.00043755,60]
[340264573,1728948591980,-680.3925,0.00043835,9]
[340264574,1728948592003,-300.55,0.00044042,2]
[340264575,1728948592118,-668.04711582,0.00044337,6]
[340264576,1728948592144,-334.02355791,0.00044347,6]
[340264577,1728948592168,-500.0,0.00044356,60]
[340264578,1728948592190,-500.0,0.00044356,60]
[340264579,1728948592215,-500.0,0.00044356,60]
[340264580,1728948592237,-500.0,0.00044357,60]
[340264581,1728948592259,-252.44206608,0.00044357,60]
[340264582,1728948592283,-500.0,0.00044357,60]
[340264583,1728948592306,-500.0,0.00044357,60]
[340264584,1728948592329,-176.29579788,0.00044357,60]
[340264585,1728948592352,-500.0,0.00044357,60]
[340264586,1728948592374,-500.0,0.00044357,60]
[340264587,1728948592397,-521.47000882,0.00044357,60]
[340264588,1728948592421,-500.0,0.00044357,60]
[340264589,1728948592443,-500.0,0.00044357,60]
[340264590,1728948592466,-500.0,0.00044357,60]
[340264591,1728948592489,-500.0,0.00044357,60]
[340264592,1728948592516,-500.0,0.00044357,60]
[340264593,1728948592540,-500.0,0.00044357,60]
[340264594,1728948592563,-530.94812593,0.00044357,60]
[340264595,1728948592589,-500.0,0.00044357,60]
[340264596,1728948592612,-500.0,0.00044357,60]
[340264597,1728948592635,-534.89784947,0.00044357,60]
[340264598,1728948592660,-500.0,0.00044357,60]
[340264599,1728948592688,-567.40265083,0.00044357,60]
[340264600,1728948592711,-500.0,0.00044357,60]
[340264601,1728948592733,-500.0,0.00044357,60]
[340264602,1728948592757,-500.0,0.00044357,60]
[340264603,1728948592779,-500.0,0.00044357,60]
[340264604,1728948592802,-500.0,0.00044357,60]
[340264605,1728948592824,-500.0,0.00044357,60]
[340264606,1728948592848,-500.0,0.00044357,60]
[340264607,1728948592870,-500.0,0.00044357,60]
[340264608,1728948592892,-500.0,0.00044357,60]
[340264609,1728948592914,-500.0,0.00044357,60]
[340264610,1728948592935,-500.0,0.00044357,60]
[340264611,1728948592957,-535.70186384,0.00044357,60]
[340264612,1728948592979,-157.06662272,0.00044357,60]
[340264613,1728948593001,-1036.76,0.00044357,60]
[340264614,1728948593024,-500.0,0.00044357,60]
[340264615,1728948593046,-500.0,0.00044357,60]
[340264616,1728948593069,-359.77,0.00044357,60]
[340264617,1728948593092,-618.84609781,0.00044357,60]
[340264618,1728948593115,-500.0,0.00044357,60]
[340264619,1728948593139,-153.67856138,0.00044357,60]
[340264620,1728948593162,-500.0,0.00044357,60]
[340264621,1728948593183,-644.09721446,0.00044357,60]
[340264622,1728948593205,-574.99325426,0.00044357,60]
[340264623,1728948593228,-500.0,0.00044357,60]
[340264624,1728948593251,-500.0,0.00044357,60]
[340264625,1728948593272,-500.0,0.00044357,60]
[340264626,1728948593294,-500.0,0.00044357,60]
[340264627,1728948593317,-500.0,0.00044357,60]
[340264628,1728948593340,-500.0,0.00044357,60]
[340264629,1728948593364,-500.0,0.00044357,60]
[340264630,1728948593385,-514.3607735,0.00044357,2]
[340264631,1728948593408,-500.0,0.00044357,60]
[340264632,1728948593430,-500.0,0.00044357,60]
[340264633,1728948593453,-500.0,0.00044357,60]
[340264634,1728948593476,-500.0,0.00044357,60]
[340264635,1728948593498,-500.0,0.00044357,60]
[340264636,1728948593521,-500.0,0.00044357,60]
[340264637,1728948593545,-500.0,0.00044357,60]
[340264638,1728948593568,-500.0,0.00044357,60]
[340264639,1728948593593,-545.79478402,0.00044357,60]
[340264640,1728948593616,-500.0,0.00044357,60]
[340264641,1728948593638,-522.13706292,0.00044357,60]
[340264642,1728948593667,-561.08285401,0.00044357,60]
[340264643,1728948593689,-500.0,0.00044357,60]
[340264644,1728948593714,-500.0,0.00044357,60]
[340264645,1728948593738,-579.05586654,0.00044357,60]
[340264646,1728948593761,-500.0,0.00044357,60]
[340264647,1728948593784,-500.0,0.00044357,60]
[340264648,1728948593809,-500.0,0.00044357,60]
[340264649,1728948593833,-500.0,0.00044357,60]
[340264650,1728948593856,-495.07503118,0.00044357,60]
[340264651,1728948593881,-500.0,0.00044357,60]
[340264652,1728948593905,-500.0,0.00044357,60]
[340264653,1728948593929,-500.0,0.00044357,60]
[340264654,1728948593955,-500.0,0.00044357,60]
[340264655,1728948593979,-500.0,0.00044357,60]
[340264656,1728948594003,-500.0,0.00044357,60]
[340264657,1728948594027,-1500.0,0.00044357,120]
[340264658,1728948594051,-500.0,0.00044357,60]
[340264659,1728948594076,-500.0,0.00044357,60]
[340264660,1728948594100,-500.0,0.00044357,60]
[340264661,1728948594124,-589.23222426,0.00044357,60]
[340264662,1728948594150,-500.0,0.00044357,60]
[340264663,1728948594176,-500.0,0.00044357,60]
[340264664,1728948594200,-500.0,0.00044357,60]
[340264665,1728948594223,-500.0,0.00044357,60]
[340264666,1728948594245,-500.0,0.00044357,60]
[340264667,1728948594269,-500.0,0.00044357,60]
[340264668,1728948594292,-500.0,0.00044357,60]
[340264669,1728948594317,-500.0,0.00044357,60]
[340264670,1728948594422,-500.0,0.00044357,60]
[340264671,1728948594451,-500.0,0.00044357,60]
[340264672,1728948594475,-500.0,0.00044357,60]
[340264673,1728948594502,-500.0,0.00044357,60]
[340264674,1728948594526,-500.0,0.00044357,60]
[340264675,1728948594551,-500.0,0.00044357,60]
[340264676,1728948594577,-500.0,0.00044357,60]
[340264677,1728948594603,-500.0,0.00044357,60]
[340264678,1728948594628,-500.0,0.00044357,60]
[340264679,1728948594652,-500.0,0.00044357,60]
[340264680,1728948594679,-221.5075836,0.00044357,60]
[340264681,1728948594704,-568.62717892,0.00044357,60]
[340264682,1728948594731,-500.0,0.00044357,60]
[340264683,1728948594755,-500.0,0.00044357,60]
[340264684,1728948594778,-683.6,0.00044357,60]
[340264685,1728948594802,-500.0,0.00044357,60]
[340264686,1728948594825,-500.0,0.00044357,60]
[340264687,1728948594850,-500.0,0.00044357,60]
[340264688,1728948594877,-500.0,0.00044357,60]
[340264689,1728948594900,-500.0,0.00044357,60]
[340264690,1728948594925,-500.0,0.00044357,60]
[340264691,1728948594950,-500.0,0.00044357,60]
[340264692,1728948594975,-500.0,0.00044357,60]
[340264693,1728948594999,-845.02,0.00044357,60]
[340264694,1728948595025,-500.0,0.00044357,60]
[340264695,1728948595048,-448.65372029,0.00044357,60]
[340264696,1728948595072,-496.14832027,0.00044357,60]
[340264697,1728948595099,-500.0,0.00044357,60]
[340264698,1728948595124,-500.0,0.00044357,60]
[340264699,1728948595149,-500.0,0.00044357,60]
[340264700,1728948595175,-500.0,0.00044357,60]
[340264701,1728948595199,-500.0,0.00044357,60]
[340264702,1728948595223,-500.0,0.00044357,60]
[340264703,1728948595246,-500.0,0.00044357,60]
[340264704,1728948595270,-500.0,0.00044357,60]
[340264705,1728948595294,-500.0,0.00044357,60]
[340264706,1728948595320,-500.0,0.00044357,60]
[340264707,1728948595346,-373.82875158,0.00044357,60]
[340264708,1728948595369,-500.0,0.00044357,60]
[340264709,1728948595394,-500.0,0.00044357,60]
[340264710,1728948595417,-525.89,0.00044357,60]
[340264711,1728948595441,-500.0,0.00044357,60]
[340264712,1728948595465,-543.69123347,0.00044357,60]
[340264713,1728948595488,-500.0,0.00044357,60]
[340264714,1728948595513,-612.22121759,0.00044357,60]
[340264715,1728948595537,-506.7,0.00044357,60]
[340264716,1728948595561,-500.0,0.00044357,60]
[340264717,1728948595586,-500.0,0.00044357,60]
[340264718,1728948595611,-500.0,0.00044357,60]
[340264719,1728948595635,-500.0,0.00044357,60]
[340264720,1728948595658,-500.0,0.00044357,60]
[340264721,1728948595685,-500.0,0.00044357,60]
[340264722,1728948595707,-500.0,0.00044357,60]
[340264723,1728948595730,-500.0,0.00044357,60]
[340264724,1728948595753,-172.12727014,0.00044373,10]
[340264725,1728948595776,-500.0,0.00044373,10]
[340264726,1728948595799,-549.25691751,0.00044373,10]
[340264727,1728948595821,-500.0,0.00044567,10]
[340264728,1728948595845,-500.0,0.00044609,10]
[340264729,1728948595869,-770.0,0.00044638,30]
[340264730,1728948595895,-334.02355791,0.0004495,6]
[340264731,1728948595919,-500.0,0.00044959,60]
[340264732,1728948595944,-500.0,0.00044959,60]
[340264733,1728948595970,-500.0,0.00044959,60]
[340264734,1728948595993,-500.0,0.0004496,60]
[340264735,1728948596017,-500.0,0.0004496,60]
[340264736,1728948596039,-500.0,0.0004496,60]
[340264737,1728948596062,-500.0,0.0004496,60]
[340264738,1728948596086,-500.0,0.0004496,60]
[340264739,1728948596111,-500.0,0.0004496,60]
[340264740,1728948596134,-500.0,0.0004496,60]
[340264741,1728948596158,-152.74713439,0.0004496,60]
[340264742,1728948596181,-500.0,0.0004496,60]
[340264743,1728948596204,-500.0,0.0004496,60]
[340264744,1728948596227,-500.0,0.0004496,60]
[340264745,1728948596250,-500.0,0.0004496,60]
[340264746,1728948596272,-500.0,0.0004496,60]
[340264747,1728948596296,-500.0,0.0004496,60]
[340264748,1728948596319,-500.0,0.0004496,60]
[340264749,1728948596342,-193.77504591,0.0004496,60]
[340264750,1728948596365,-500.0,0.0004496,60]
[340264751,1728948596388,-500.0,0.0004496,60]
[340264752,1728948596412,-500.0,0.0004496,60]
[340264753,1728948596435,-500.0,0.0004496,60]
[340264754,1728948596457,-500.0,0.0004496,60]
[340264755,1728948596480,-478.2204658,0.0004496,60]
[340264756,1728948596504,-624.45699796,0.0004496,60]
[340264757,1728948596528,-500.0,0.0004496,60]
[340264758,1728948596551,-239.91880633,0.0004496,60]
[340264759,1728948596574,-500.0,0.0004496,60]
[340264760,1728948596600,-500.0,0.0004496,60]
[340264761,1728948596623,-500.0,0.0004496,60]
[340264762,1728948596740,-500.0,0.0004496,60]
[340264763,1728948596767,-566.67080846,0.0004496,60]
[340264764,1728948596790,-500.0,0.0004496,60]
[340264765,1728948596814,-1036.76,0.0004496,60]
[340264766,1728948596840,-500.0,0.0004496,60]
[340264767,1728948596865,-500.0,0.0004496,60]
[340264768,1728948596888,-359.77,0.0004496,60]
[340264769,1728948596912,-500.0,0.0004496,60]
[340264770,1728948596936,-500.0,0.0004496,60]
[340264771,1728948596961,-500.0,0.0004496,60]
[340264772,1728948596985,-528.00866818,0.0004496,60]
[340264773,1728948597009,-500.0,0.0004496,60]
[340264774,1728948597032,-500.0,0.0004496,60]
[340264775,1728948597055,-500.0,0.0004496,60]
[340264776,1728948597080,-516.84433976,0.0004496,60]
[340264777,1728948597103,-537.5390554,0.0004496,60]
[340264778,1728948597126,-500.0,0.0004496,60]
[340264779,1728948597149,-500.0,0.0004496,60]
[340264780,1728948597173,-500.0,0.0004496,60]
[340264781,1728948597196,-500.0,0.0004496,60]
[340264782,1728948597219,-500.0,0.0004496,60]
[340264783,1728948597242,-500.0,0.0004496,60]
[340264784,1728948597265,-524.0015512,0.0004496,60]
[340264785,1728948597288,-216.44089296,0.0004496,60]
[340264786,1728948597310,-500.0,0.0004496,60]
[340264787,1728948597334,-500.0,0.0004496,60]
[340264788,1728948597357,-298.6397317,0.0004496,60]
[340264789,1728948597380,-500.0,0.0004496,60]
[340264790,1728948597404,-500.0,0.0004496,60]
[340264791,1728948597428,-500.0,0.0004496,60]
[340264792,1728948597450,-500.0,0.0004496,60]
[340264793,1728948597473,-500.0,0.0004496,60]
[340264794,1728948597496,-500.0,0.0004496,60]
[340264795,1728948597519,-500.0,0.0004496,60]
[340264796,1728948597542,-500.0,0.0004496,60]
[340264797,1728948597565,-500.0,0.0004496,60]
[340264798,1728948597589,-500.0,0.0004496,60]
[340264799,1728948597612,-1500.0,0.0004496,120]
[340264800,1728948597636,-500.0,0.0004496,60]
[340264801,1728948597659,-500.0,0.0004496,60]
[340264802,1728948597685,-507.91689359,0.0004496,60]
[340264803,1728948597709,-500.0,0.0004496,60]
[340264804,1728948597732,-500.0,0.0004496,60]
[340264805,1728948597754,-500.0,0.0004496,60]
[340264806,1728948597777,-500.0,0.0004496,60]
[340264807,1728948597799,-500.0,0.0004496,60]
[340264808,1728948597822,-500.0,0.0004496,60]
[340264809,1728948597844,-500.0,0.0004496,60]
[340264810,1728948597868,-500.0,0.0004496,60]
[340264811,1728948597890,-500.0,0.0004496,60]
[340264812,1728948597913,-500.0,0.0004496,60]
[340264813,1728948597936,-500.0,0.0004496,60]
[340264814,1728948597960,-500.0,0.0004496,60]
[340264815,1728948597983,-500.0,0.0004496,60]
[340264816,1728948598007,-500.0,0.0004496,60]
[340264817,1728948598029,-500.0,0.0004496,60]
[340264818,1728948598052,-500.0,0.0004496,60]
[340264819,1728948598076,-500.0,0.0004496,60]
[340264820,1728948598101,-500.0,0.0004496,60]
[340264821,1728948598125,-500.0,0.0004496,60]
[340264822,1728948598148,-500.0,0.0004496,60]
[340264823,1728948598171,-683.6,0.0004496,60]
[340264824,1728948598193,-303.35841777,0.0004496,60]
[340264825,1728948598216,-500.0,0.0004496,60]
[340264826,1728948598239,-500.0,0.0004496,60]
[340264827,1728948598263,-500.0,0.0004496,60]
[340264828,1728948598287,-500.0,0.0004496,60]
[340264829,1728948598310,-547.00019513,0.0004496,60]
[340264830,1728948598336,-500.0,0.0004496,60]
[340264831,1728948598360,-500.0,0.0004496,60]
[340264832,1728948598385,-845.02,0.0004496,60]
[340264833,1728948598411,-500.0,0.0004496,60]
[340264834,1728948598436,-500.0,0.0004496,60]
[340264835,1728948598462,-500.0,0.0004496,60]
[340264836,1728948598487,-500.0,0.0004496,60]
[340264837,1728948598510,-554.14028047,0.0004496,60]
[340264838,1728948598533,-500.0,0.0004496,60]
[340264839,1728948598557,-500.0,0.0004496,60]
[340264840,1728948598582,-500.0,0.0004496,60]
[340264841,1728948598609,-500.0,0.0004496,60]
[340264842,1728948598633,-500.0,0.0004496,60]
[340264843,1728948598656,-342.70729661,0.0004496,60]
[340264844,1728948598681,-500.0,0.0004496,60]
[340264845,1728948598704,-525.89,0.0004496,60]
[340264846,1728948598726,-307.95188593,0.0004496,60]
[340264847,1728948598750,-500.0,0.0004496,60]
[340264848,1728948598772,-506.7,0.0004496,60]
[340264849,1728948598795,-500.0,0.0004496,60]
[340264850,1728948598906,-500.0,0.0004496,60]
[340264851,1728948598931,-500.0,0.0004496,60]
[340264852,1728948598955,-500.0,0.0004496,60]
[340264853,1728948598979,-500.0,0.0004496,60]
[340264854,1728948599004,-500.0,0.0004496,60]
[340264855,1728948599027,-500.0,0.0004496,60]
[340264856,1728948599054,-500.0,0.0004496,60]
[340264857,1728948599077,-255.78936829,0.00045,120]
[340264858,1728948599274,1060.17,0.00043745,10]
[340264859,1728948599328,500.0,0.00043755,60]
[340264860,1728948599364,500.0,0.00044357,60]
[340264861,1728948599395,500.0,0.0004496,60]
[340264862,1728948599472,428.789906,0.00037979,2]
[340264863,1728948599587,500.0,0.00043755,60]
[340264864,1728948599619,500.0,0.00044357,60]
[340264865,1728948599649,500.0,0.0004496,60]
[340264866,1728948599724,29209.21067389,0.000442,120]
[340264867,1728948599895,1362.27408955,0.00044135,22]
[340264868,1728948599932,29209.21067387,0.00044835,120]
[340264869,1728948599984,500.0,0.00043755,60]
[340264870,1728948600097,340.35647848,0.00044357,60]
[340264871,1728948600577,423.0,0.0004058,30]
[340264872,1728948601472,500.0,0.00043754,60]
[340264873,1728948601715,544.32808928,0.00043754,60]
[340264874,1728948601812,500.0,0.00044357,60]
[340264875,1728948602185,500.0,0.0004496,60]
[340264876,1728948602315,500.0,0.00043753,60]
[340264877,1728948602631,500.0,0.00044356,60]
[340264878,1728948602951,500.0,0.00044959,60]
[340264879,1728948603441,550.0,0.0004058,5]
[340264880,1728948603621,500.0,0.00044373,10]
[340264881,1728948604354,770.0,0.00043259,5]
[340264882,1728948608736,508.26921173,0.00043754,60]
[340264883,1728948610606,500.0,0.00043753,60]
[340264884,1728948610922,500.0,0.00044356,60]
[340264885,1728948611220,500.0,0.00043754,60]
[340264886,1728948611253,500.0,0.00044959,60]
[340264887,1728948611431,510.27934418,0.00043754,60]
[340264888,1728948611566,500.0,0.00044357,60]
[340264889,1728948611901,500.0,0.0004496,60]
[340264890,1728948613836,500.0,0.00043754,60]
[340264891,1728948619093,500.0,0.00043755,60]
[340264892,1728948619499,500.0,0.00044357,60]
[340264893,1728948619729,500.0,0.0004496,60]
[340264894,1728948621975,500.0,0.00043754,60]
[340264895,1728948622293,575.95107957,0.00044357,60]
[340264896,1728948623304,1000.0,0.00043755,60]
[340264897,1728948623487,500.0,0.00043753,60]
[340264898,1728948623602,1103.2323209,0.00044357,60]
[340264899,1728948623817,500.0,0.00044356,60]
[340264900,1728948624100,500.0,0.00044959,60]
[340265006,1728948649074,-150.0,0.00040579,14]
[340265007,1728948649084,-199.02,0.00040579,14]
[340265008,1728948649095,-19247.90922024,0.00040579,2]
[340265009,1728948649106,-500.0,0.00043753,60]
[340265010,1728948649116,-500.0,0.00043754,60]
[340265011,1728948649126,-500.0,0.00043754,60]
[340265012,1728948649136,-500.0,0.00043754,60]
[340265013,1728948649146,-500.0,0.00043754,60]
[340265014,1728948649156,-500.0,0.00043755,60]
[340265015,1728948649165,-500.0,0.00044356,60]
[340265016,1728948649175,-500.0,0.00044357,60]
[340265017,1728948649185,-367.14269412,0.00044357,60]
[340265018,1728948649195,-638.98379401,0.00044357,60]
[340265019,1728948649205,-500.0,0.00044357,60]
[340265020,1728948649215,-500.0,0.00044959,60]
[340265021,1728948649225,-464.16842809,0.0004496,60]
[340265022,1728948649235,-197.495595,0.0004496,60]
[340265023,1728948649244,-161.60042158,0.00045037,7]
[340265024,1728948649256,-502.75837109,0.00045037,7]
[340265025,1728948649266,-668.04711582,0.00045543,6]
[340265026,1728948649276,-334.02355791,0.00045553,6]
[340265027,1728948649286,-500.0,0.00045561,60]
[340265028,1728948649295,-500.0,0.00045561,60]
[340265029,1728948649305,-500.0,0.00045561,60]
[340265030,1728948649315,-500.0,0.00045561,60]
[340265031,1728948649325,-500.0,0.00045561,60]
[340265032,1728948649335,-500.0,0.00045561,60]
[340265033,1728948649345,-500.0,0.00045561,60]
[340265034,1728948649355,-500.0,0.00045563,60]
[340265035,1728948649365,-500.0,0.00045563,60]
[340265036,1728948649375,-500.0,0.00045563,60]